Workbook

Sheet Cover

Sheet Parameters
C2: Parameters for deriving performance requirements
C3: Ideal Span Threshold | D3: 2 | E3: dB
C4: Impairment Span Threshold | D4: 4 | E4: dB
B7: Notes | C7: 1. Call function DerivingPerfReq()
C8: 2. If the ruls does not apply, or fails, -100dB or less will be returned
D9: -100 | E9: Not enough input
D10: -101 | E10: Input should be pairs
D11: -102 | E11: Too large span for impairment
D12: -103 | E12: After removal iteration, not enough input

Sheet PUCCH Format1 JCE (1T2R)
A1: PUCCH Format1 JCE (1T2R) | E1: 38.104 req | F1: 38.141 req | G1: Nokia | I1: Ericsson | K1: Samsung | M1: Huawei | O1: Company 5 | Q1: Company 6 | S1: Company 7 | U1: Company 8 | W1: Company 9 | Y1: Company 10 | AA1: SPAN | AC1: AVERAGE
A2: JCE over | G2: Ideal | H2: Impairment | I2: Ideal | J2: Impairment | K2: Ideal | L2: Impairment | M2: Ideal | N2: Impairment | O2: Ideal | P2: Impairment | Q2: Ideal | R2: Impairment | S2: Ideal | T2: Impairment | U2: Ideal | V2: Impairment | W2: Ideal | X2: Impairment | Y2: Ideal | Z2: Impairment | AA2: Ideal | AB2: Impairment | AC2: Ideal | AD2: Impairment
A3: 8 slots | B3: FDD 15kHz SCS 5MHz | C3: TDLA30-10 Low | D3: ACK missed detection | E3: =DerivingPerfReq(G3:Z3) -> -8.9 | F3: =IF(E3>-100,E3+0.6,E3) -> -8.3 | G3: -14 | H3: -11.5 | I3: -11.3 | J3: =I3+2 -> -9.3 | K3: -10.8 | L3: -8.8 | M3: -11.23 | N3: -8.73 | AA3: =MAX(G3,I3,K3,M3,O3,Q3,S3,U3,W3,Y3)-MIN(G3,I3,K3,M3,O3,Q3,S3,U3,W3,Y3) -> 3.2 | AB3: =MAX(H3,J3,L3,N3,P3,R3,T3,V3,X3,Z3)-MIN(H3,J3,L3,N3,P3,R3,T3,V3,X3,Z3) -> 2.77 | AC3: =AVERAGE(G3,I3,K3,M3,O3,Q3,S3,U3,W3,Y3) -> -11.8325 | AD3: =AVERAGE(H3,J3,L3,N3,P3,R3,T3,V3,X3,Z3) -> -9.5825
D4: NACK to ACK detection | E4: =DerivingPerfReq(G4:Z4) -> -9.1 | F4: =IF(E4>-100,E4+0.6,E4) -> -8.5 | G4: -11.7 | H4: -9.2 | I4: -12 | J4: =I4+2 -> -10 | K4: -10.56 | L4: -8.6 | M4: -11.16 | N4: -8.66 | AA4: =MAX(G4,I4,K4,M4,O4,Q4,S4,U4,W4,Y4)-MIN(G4,I4,K4,M4,O4,Q4,S4,U4,W4,Y4) -> 1.44 | AB4: =MAX(H4,J4,L4,N4,P4,R4,T4,V4,X4,Z4)-MIN(H4,J4,L4,N4,P4,R4,T4,V4,X4,Z4) -> 1.4 | AC4: =AVERAGE(G4,I4,K4,M4,O4,Q4,S4,U4,W4,Y4) -> -11.355 | AD4: =AVERAGE(H4,J4,L4,N4,P4,R4,T4,V4,X4,Z4) -> -9.115
A5: 2 slots | B5: TDD 15kHz SCS 5MHz | D5: ACK missed detection | E5: =DerivingPerfReq(G5:Z5) -> -3.9 | F5: -3.3 | G5: -7.8 | H5: -5.3 | I5: -5.3 | J5: -3.3 | K5: -6.09 | L5: -4.09 | M5: -6.92 | N5: -4.42 | AA5: =MAX(G5,I5,K5,M5,O5,Q5,S5,U5,W5,Y5)-MIN(G5,I5,K5,M5,O5,Q5,S5,U5,W5,Y5) -> 2.5 | AB5: 2 | AC5: =AVERAGE(G5,I5,K5,M5,O5,Q5,S5,U5,W5,Y5) -> -6.5275 | AD5: -4.2775
D6: NACK to ACK detection | E6: -3 | F6: -2.4 | G6: -4.9 | H6: -2.4 | I6: -6 | J6: -4 | K6: -5.24 | L6: -3.24 | M6: -5 | N6: -2.5 | AA6: 1.1 | AB6: 1.6 | AC6: -5.285 | AD6: -3.035
A7: 8 slots | B7: FDD 30kHz SCS 10MHz | D7: ACK missed detection | E7: -8.5 | F7: -7.9 | G7: -13.7 | H7: -11.2 | I7: -11.2 | J7: -9.2 | K7: -10.67 | L7: -8.67 | M7: -10.22 | N7: -7.72 | AA7: 3.48 | AB7: 3.48 | AC7: -11.4475 | AD7: -9.1975
D8: NACK to ACK detection | E8: -8.7 | F8: -8.1 | G8: -10.6 | H8: -8.1 | I8: -11.6 | J8: -9.6 | K8: -9.93 | L8: -7.93 | M8: -11.68 | N8: -9.18 | AA8: 1.75 | AB8: 1.67 | AC8: -10.9525 | AD8: -8.7025
A9: 2 slots | B9: TDD 30kHz SCS 10MHz | D9: ACK missed detection | E9: -3.8 | F9: -3.2 | G9: -7.6 | H9: -5.1 | I9: -5.4 | J9: -3.4 | K9: -6.25 | L9: -4.25 | M9: -6.18 | N9: -3.68 | AA9: 2.2 | AB9: 1.7 | AC9: -6.3575 | AD9: -4.1075
D10: NACK to ACK detection | E10: -3 | F10: -2.4 | G10: -4.8 | H10: -2.3 | I10: -5.7 | J10: -3.7 | K10: -4.85 | L10: -2.85 | M10: -5.5 | N10: -3 | AA10: 0.9 | AB10: 1.4 | AC10: -5.2125 | AD10: -2.9625
A11: 2 slots | B11: TDD 60kHz SCS 50MHz | C11: TDLA30-75 Low | D11: ACK missed detection | E11: -103 | F11: -103 | G11: -8.3 | H11: -5.2 | I11: -5.2 | J11: =I11+2.5 -> -2.7 | K11: -6.16 | L11: -4.16 | M11: -10.09 | N11: -7.59 | AA11: 4.89 | AB11: 4.89 | AC11: -7.4375 | AD11: -4.9125
D12: NACK to ACK detection | E12: =DerivingPerfReq(G12:Z12) -> -2.9 | F12: =IF(E12>-100,E12+0.6,E12) -> -2.3 | G12: -5.6 | H12: -2.5 | I12: -5.3 | J12: =I12+2.5 -> -2.8 | K12: -5.4 | L12: -3.4 | M12: -8.99 | N12: -6.49 | AA12: =MAX(G12,I12,K12,M12,O12,Q12,S12,U12,W12,Y12)-MIN(G12,I12,K12,M12,O12,Q12,S12,U12,W12,Y12) -> 3.69 | AB12: =MAX(H12,J12,L12,N12,P12,R12,T12,V12,X12,Z12)-MIN(H12,J12,L12,N12,P12,R12,T12,V12,X12,Z12) -> 3.99 | AC12: =AVERAGE(G12,I12,K12,M12,O12,Q12,S12,U12,W12,Y12) -> -6.3225 | AD12: =AVERAGE(H12,J12,L12,N12,P12,R12,T12,V12,X12,Z12) -> -3.7975
B13: TDD 120kHz SCS 50MHz | D13: ACK missed detection | E13: -4.8 | F13: -4.2 | G13: -8.1 | H13: -5 | I13: -5.2 | J13: -2.7 | K13: -6.21 | L13: -4.2 | M13: -7.66 | N13: -5.16 | AA13: 2.9 | AB13: 2.46 | AC13: -6.7925 | AD13: -4.265
D14: NACK to ACK detection | E14: =DerivingPerfReq(G14:Z14) -> -3 | F14: -2.4 | G14: -5.5 | H14: -2.4 | I14: -5.3 | J14: -2.8 | K14: -5.81 | L14: -3.8 | M14: -7.63 | N14: -5.13 | AA14: =MAX(G14,I14,K14,M14,O14,Q14,S14,U14,W14,Y14)-MIN(G14,I14,K14,M14,O14,Q14,S14,U14,W14,Y14) -> 2.33 | AB14: 2.73 | AC14: =AVERAGE(G14,I14,K14,M14,O14,Q14,S14,U14,W14,Y14) -> -6.06 | AD14: -3.5325

Sheet PUCCH Format3 JCE (1T2R)
A1: PUCCH Format3 JCE (1T2R) | E1: 38.104 req | F1: 38.141 req | G1: Nokia | I1: Ericsson | K1: Samsung | M1: Huawei | O1: Company 5 | Q1: Company 6 | S1: Company 7 | U1: Company 8 | W1: Company 9 | Y1: Company 10 | AA1: SPAN | AC1: AVERAGE
A2: JCE over | G2: Ideal | H2: Impairment | I2: Ideal | J2: Impairment | K2: Ideal | L2: Impairment | M2: Ideal | N2: Impairment | O2: Ideal | P2: Impairment | Q2: Ideal | R2: Impairment | S2: Ideal | T2: Impairment | U2: Ideal | V2: Impairment | W2: Ideal | X2: Impairment | Y2: Ideal | Z2: Impairment | AA2: Ideal | AB2: Impairment | AC2: Ideal | AD2: Impairment
A3: 8 slots | B3: FDD 15kHz SCS 5MHz | C3: TDLA30-10 Low | D3: DMRS 1+0 | E3: =DerivingPerfReq(G3:Z3) -> -5.3 | F3: =IF(E3>-100,E3+0.6,E3) -> -4.7 | G3: -6.8 | H3: -4.3 | I3: -8.2 | J3: =I3+2 -> -6.2 | K3: -6.93 | L3: -4.93 | M3: -8.34 | N3: -5.84 | AA3: =MAX(G3,I3,K3,M3,O3,Q3,S3,U3,W3,Y3)-MIN(G3,I3,K3,M3,O3,Q3,S3,U3,W3,Y3) -> 1.54 | AB3: =MAX(H3,J3,L3,N3,P3,R3,T3,V3,X3,Z3)-MIN(H3,J3,L3,N3,P3,R3,T3,V3,X3,Z3) -> 1.9 | AC3: =AVERAGE(G3,I3,K3,M3,O3,Q3,S3,U3,W3,Y3) -> -7.5675 | AD3: =AVERAGE(H3,J3,L3,N3,P3,R3,T3,V3,X3,Z3) -> -5.3175
D4: DMRS 1+1 | E4: -5.8 | F4: =IF(E4>-100,E4+0.6,E4) -> -5.2 | G4: -7.6 | H4: -5.1 | I4: -8.4 | J4: =I4+2 -> -6.4 | K4: -7.6 | L4: -5.6 | M4: -8.52 | N4: -6.02 | AA4: =MAX(G4,I4,K4,M4,O4,Q4,S4,U4,W4,Y4)-MIN(G4,I4,K4,M4,O4,Q4,S4,U4,W4,Y4) -> 0.92 | AB4: =MAX(H4,J4,L4,N4,P4,R4,T4,V4,X4,Z4)-MIN(H4,J4,L4,N4,P4,R4,T4,V4,X4,Z4) -> 1.3 | AC4: =AVERAGE(G4,I4,K4,M4,O4,Q4,S4,U4,W4,Y4) -> -8.03 | AD4: =AVERAGE(H4,J4,L4,N4,P4,R4,T4,V4,X4,Z4) -> -5.78
A5: 2 slots | B5: TDD 15kHz SCS 5MHz | D5: DMRS 1+0 | E5: 0.3 | F5: 0.9 | G5: -1.8 | H5: 0.7 | I5: -2.2 | J5: -0.2 | K5: -1.7 | L5: 0.3 | M5: -2.21 | N5: 0.29 | AA5: =MAX(G5,I5,K5,M5,O5,Q5,S5,U5,W5,Y5)-MIN(G5,I5,K5,M5,O5,Q5,S5,U5,W5,Y5) -> 0.51 | AB5: 0.9 | AC5: =AVERAGE(G5,I5,K5,M5,O5,Q5,S5,U5,W5,Y5) -> -1.9775 | AD5: 0.2725
D6: DMRS 1+1 | E6: -0.1 | F6: 0.5 | G6: -2.2 | H6: 0.3 | I6: -2.6 | J6: -0.6 | K6: -2.3 | L6: -0.3 | M6: -2.25 | N6: 0.25 | AA6: 0.4 | AB6: 0.9 | AC6: -2.3375 | AD6: -0.0875
A7: 8 slots | B7: FDD 30kHz SCS 10MHz | D7: DMRS 1+0 | E7: -5.2 | F7: -4.6 | G7: -6.6 | H7: -4.1 | I7: -8.2 | J7: -6.2 | K7: -7 | L7: -5 | M7: -8.08 | N7: -5.58 | AA7: 1.6 | AB7: 2.1 | AC7: -7.47 | AD7: -5.22
D8: DMRS 1+1 | E8: -5.6 | F8: -5 | G8: -7.4 | H8: -4.9 | I8: -8.5 | J8: -6.5 | K8: -7.6 | L8: -5.6 | M8: -8.01 | N8: -5.51 | AA8: 1.1 | AB8: 1.6 | AC8: -7.8775 | AD8: -5.6275
A9: 2 slots | B9: TDD 30kHz SCS 10MHz | D9: DMRS 1+0 | E9: 0.2 | F9: 0.8 | G9: -1.6 | H9: 0.9 | I9: -2.3 | J9: -0.3 | K9: -2.1 | L9: -0.1 | M9: -2.03 | N9: 0.47 | AA9: 0.7 | AB9: 1.2 | AC9: -2.0075 | AD9: 0.2425
D10: DMRS 1+1 | E10: 0 | F10: 0.6 | G10: -2 | H10: 0.5 | I10: -2.6 | J10: -0.6 | K10: -2.6 | L10: -0.6 | M10: -1.95 | N10: 0.55 | AA10: 0.65 | AB10: 1.15 | AC10: -2.2875 | AD10: -0.0375
A11: 2 slots | B11: TDD 60kHz SCS 50MHz | C11: TDLA30-75 Low | D11: DMRS 1+0 | E11: 0.1 | F11: 0.7 | G11: -2.5 | H11: 0.6 | I11: -2.2 | J11: -0.2 | K11: -2.1 | L11: -0.1 | M11: -0.06 | N11: 2.44 | AA11: 2.44 | AB11: 2.64 | AC11: -1.715 | AD11: 0.685
D12: DMRS 1+1 | E12: =DerivingPerfReq(G12:Z12) -> -0.2 | F12: 0.4 | G12: -3.1 | H12: 0 | I12: -2.6 | J12: =I12+2.5 -> -0.1 | K12: -2.5 | L12: -0.5 | M12: -0.57 | N12: 1.93 | AA12: =MAX(G12,I12,K12,M12,O12,Q12,S12,U12,W12,Y12)-MIN(G12,I12,K12,M12,O12,Q12,S12,U12,W12,Y12) -> 2.53 | AB12: =MAX(H12,J12,L12,N12,P12,R12,T12,V12,X12,Z12)-MIN(H12,J12,L12,N12,P12,R12,T12,V12,X12,Z12) -> 2.43 | AC12: =AVERAGE(G12,I12,K12,M12,O12,Q12,S12,U12,W12,Y12) -> -2.1925 | AD12: =AVERAGE(H12,J12,L12,N12,P12,R12,T12,V12,X12,Z12) -> 0.3325
B13: TDD 120kHz SCS 50MHz | D13: DMRS 1+0 | E13: 0.7 | F13: =IF(E13>-100,E13+0.6,E13) -> 1.3 | G13: -2.2 | H13: 0.9 | I13: -2.3 | J13: 0.2 | K13: -2.1 | L13: -0.1 | M13: -0.53 | N13: 1.97 | AA13: 1.77 | AB13: 2.07 | AC13: -1.7825 | AD13: 0.7425
D14: DMRS 1+1 | E14: =DerivingPerfReq(G14:Z14) -> -0.1 | F14: 0.5 | G14: -2.6 | H14: 0.5 | I14: -2.7 | J14: -0.2 | K14: -2.6 | L14: -0.6 | M14: -0.64 | N14: 1.86 | AA14: =MAX(G14,I14,K14,M14,O14,Q14,S14,U14,W14,Y14)-MIN(G14,I14,K14,M14,O14,Q14,S14,U14,W14,Y14) -> 2.06 | AB14: =MAX(H14,J14,L14,N14,P14,R14,T14,V14,X14,Z14)-MIN(H14,J14,L14,N14,P14,R14,T14,V14,X14,Z14) -> 2.46 | AC14: =AVERAGE(G14,I14,K14,M14,O14,Q14,S14,U14,W14,Y14) -> -2.135 | AD14: =AVERAGE(H14,J14,L14,N14,P14,R14,T14,V14,X14,Z14) -> 0.39

Sheet PUCCH JCE simulation assumption
A1: Parameter | C1: Value
A2: PUCCH formats | C2: Format 1 and Format 3
A3: Duplex mode | C3: FDD and TDD
A4: SCS | C4: 15/30 kHz for FR1 (TDD and FDD)
C5: 60/120 kHz for FR2 (TDD)
A6: Antenna | C6: 1T2R
A7: Channel Model | C7: TDLA30-10 for FR1
C8: TDLA30-75 for FR2
A9: TDD UL-DL pattern (same as PUSCH) | C9: 7D1S2U, S=6D:4G:4U for 15/30kHz SCS
C10: DDSUU, S=10D:2G:2U for 60/120kHz SCS
A11: PRB number | C11: 1 PRB
A12: CBW | C12: 5MHz for 15kHz SCS
C13: 10MHz for 30kHz SCS
C14: 50MHz for 60/120kHz SCS
C15: Interested companies can bring simulation results for the largest CHBW for each SCS.
A16: Intra-slot frequency hopping | C16: Disabled
A17: Inter-slot frequency hopping | C17: Disabled
A18: aTDW length = cTDW length (same as PUSCH) | C18: 2 for TDD
C19: 8 for FDD
A20: PUCCH repetition number (same as PUSCH) | C20: 2 for TDD
C21: 8 for FDD
A22: Start symbol | C22: 0
A23: Number of symbols | C23: 14
A24: phase and power offset (same as PUSCH) | C24: Ideal
A25: Test metric | C25: format 1: Test NACK to ACK detection probability and ACK missed detection probability format 3: Test UCI block error probability
A26: Bit payload | C26: format 1: 2 bits format 3: 16 bits
A27: Group and sequence hopping | C27: neither
A28: Hopping ID | C28: 0
A29: Initial cyclic shift (format1) | C29: 0
A30: Index of orthogonal cover code (timeDomainOCC) (format1) | C30: 0
A31: Modulation order (format 3) | C31: QPSK
A32: DMRS configuration (format 3) | C32: DMRS1+1 , DMRS1+0
